{"text_format":"1","workbook":"xlsx","n_sheets":2,"sheets":["ORIG","LAVORATO"],"not_rendered":{"charts":0,"images":1,"macros":1,"external_links":0,"defined_names":1,"comments":0,"pivot_tables":0},"unopened":[],"bounds":{"document_bytes":16777216,"sheet_cells":100000,"rows_first":2000,"rows_last":500,"rows_between":2000,"halvings":0,"cell_chars":16384,"cell_head_chars":4096},"cells_cut":0,"cells_raw":0,"read":"whole","date_system":"1900"}

{"sheet":"ORIG","index":0,"n_rows":50,"n_cols":9,"rows_kept":50,"cut":false,"hidden":false,"merged":[]}
["Articolo ","Descrizione                   ",null,null,"<<<FILE 1","FILE2 >>>",null,"ARTICOLO        ","DESCRIZIONE                   "]
["0178KR","ANTIPASTIERA OVALE KRISTAL    ",null,null,null,null,null,"0178KR          ","ANTIPASTIERA OVALE KRISTAL    "]
[11,"BACINELLA QUADRATA            ",null,null,null,null,null,"0937/32         ","BACINELLA C/BORDO 0 32        "]
["0937/32","BACINELLA C/BORDO 0 32        ",null,null,null,null,null,"0937/36         ","BACINELLA C/BORDO 0 36        "]
["0937/36","BACINELLA C/BORDO 0 36        ",null,null,null,null,null,"1026/35PT       ","BACINELLA EUROPA 0 35 PT      "]
[951,"BACINELLA RETTANGOLARE        ",null,null,null,null,null,"1026/40PT       ","BACINELLA EUROPA 0 40 PT      "]
["1026/35PT","BACINELLA EUROPA 0 35 PT      ",null,null,null,null,null,11,"BACINELLA QUADRATA            "]
["1026/40PT","BACINELLA EUROPA 0 40 PT      ",null,null,null,null,null,951,"BACINELLA RETTANGOLARE        "]
[263,"BAGNETTO BABY                 ",null,null,null,null,null,263,"BAGNETTO BABY                 "]
[144,"BARATTOLO VIETRI              ",null,null,null,null,null,"0014T           ","BARATTOLO QUADRO DE LUXE LT.1 "]
["0014T","BARATTOLO QUADRO DE LUXE LT.1 ",null,null,null,null,null,"1024T/05        ","BARATTOLO DE LUXE TONDO LT.0,5"]
["1024T","BARATTOLO DE LUXE TONDO LT. 1 ",null,null,null,null,null,"1024T           ","BARATTOLO DE LUXE TONDO LT. 1 "]
["1024T/05","BARATTOLO DE LUXE TONDO LT.0,5",null,null,null,null,null,"1090/05         ","BARATTOLO ERMETICO LT.0,5 PICC"]
["1090/05","BARATTOLO ERMETICO LT.0,5 PICC",null,null,null,null,null,"1090/08         ","BARATTOLO ERMETICO LT.0,8 GR. "]
["1090/08","BARATTOLO ERMETICO LT.0,8 GR. ",null,null,null,null,null,"0257/06         ","BARATTOLO FIORELLO OVALE BASSO"]
["0021K/D","BICCHIERE BIMBO KOSTIL C/DEC. ",null,null,null,null,null,"0257/11         ","BARAT.FIOREL.OVALE ALTO LT.1,1"]
["0172/S","SHAKER SENZA ASTUCCIO         ",null,null,null,null,null,"0255/06         ","BARATTOLO FIOR.QUADRATO BASSO "]
["0060/C","BROCCA GRADUATA LT.1/2 C/COP. ",null,null,null,null,null,"0255/10         ","BARAT.FIOREL.QUAD.ALTO LT.1   "]
["0060/C/10","BROCCA GRADUATA LT.1 C/COPER. ",null,null,null,null,null,"0203/05         ","BARATTOLO FIORELLO LT.0,5     "]
[164,"BROCCA PRIMAVERA              ",null,null,null,null,null,"0203KR/05       ","BARATT.FIORELLO LT.0,5 KRISTAL"]
[442,"MIXER LT.2,5                  ",null,null,null,null,null,"0203/B/1        ","BARATTOLO FIORELLO LT.1 BASSO "]
[456,"MIXER CON COPERCHIO E TAPPO   ",null,null,null,null,null,"0203/1          ","BARATTOLO FIORELLO LT.1       "]
[466,"INNAFFIATOIO GRADUATO LT.2    ",null,null,null,null,null,"0203KR/1        ","BARATTOLO FIORELL LT.1 KRISTAL"]
[938,"BROCCA ROMA 1,5               ",null,null,null,null,null,"0203/2          ","BARATTOLO FIORELLO LT. 2      "]
["0938C","BROCCA ROMA C/COPERCHIO       ",null,null,null,null,null,"0041T           ","BARATTOLO MILANO LT.1 TRASP.  "]
["PB35/489","BROCCA TRIS (P.box mini)      ",null,null,null,null,null,203,"PORTASPAGHETTI FIORELLO       "]
[1045,"CANTINETTA                    ",null,null,null,null,null,"0203KR          ","PORTASPAGHETTI FIORELL KRISTAL"]
["0936/32","CATINO 0 32                   ",null,null,null,null,null,144,"BARATTOLO VIETRI              "]
[453,"CESTINO PORTAMOLLETTE         ",null,null,null,null,null,"0158/P          ","BICCHIERE ACQUA 350 CL        "]
[510,"CESTINO RATTAN CM.21x28,5xh8,8",null,null,null,null,null,"0021K/D         ","BICCHIERE BIMBO KOSTIL C/DEC. "]
[75,"CESTELLO FUTURA IMPILABILE    ",null,null,null,null,null,158,"BICCHIERE DRINK 500 CL        "]
[91,"CESTONE FORATO C/COPERCHIO    ",null,null,null,null,null,"0060/C          ","BROCCA GRADUATA LT.1/2 C/COP. "]
[94,"SET CESTELLO FUTURA           ",null,null,null,null,null,"0060/C/10       ","BROCCA GRADUATA LT.1 C/COPER. "]
[155,"CESTINO PORTAPANE TONDO       ",null,null,null,null,null,164,"BROCCA PRIMAVERA              "]
[156,"CESTINO PORTAPANE OVALE       ",null,null,null,null,null,938,"BROCCA ROMA 1,5               "]
[250,"CESTELLO MILLE USI CON MANICO ",null,null,null,null,null,"0938C           ","BROCCA ROMA C/COPERCHIO       "]
[261,"CESTONE JOLLY                 ",null,null,null,null,null,"PB35/489        ","BROCCA TRIS (P.box mini)      "]
[304,"CESTONE CON MANICI \"SANSONE\"  ",null,null,null,null,null,1045,"CANTINETTA                    "]
[305,"FUSTINO MAXI                  ",null,null,null,null,null,477,"CASSETTIERA A 3 CASSETTI ALTI "]
[991,"CESTINO GETTACARTE PICCOLO    ",null,null,null,null,null,478,"CASSETTIERA A 4 CASSETTI ALTI "]
["0991G","CESTINO GETTACARTE GRANDE     ",null,null,null,null,null,"0477/B          ","CASSETTIERA A 3 CASSETTI BASSA"]
[1036,"CESTELLO SOVRAPPONIBILE       ",null,null,null,null,null,"0478/B          ","CASSETTIERA A 6 CASSETTI BASSA"]
[1039,"CESTO FORATO RETTANGOLARE     ",null,null,null,null,null,"0477/M          ","CASSETTIERA A 3 CASSETTI MEDIA"]
[1062,"CESTO AGRICOLO                "]
["1064G","CESTA MILLE USI GRANDE        "]
["1064M","CESTA MILLE USI MINI          "]
["1064P","CESTA MILLE USI PICCOLA       "]
["PB35/482","ORDINATUTTO P.BOX MINI        "]
["PB70/250","CESTELLO MILLE USI MANICO PBN "]
["0012/14K","CIOTOLA AMERICA 0 14 KOSTIL   "]

{"sheet":"LAVORATO","index":1,"n_rows":50,"n_cols":14,"rows_kept":50,"cut":false,"hidden":false,"merged":[]}
["Articolo ","Descrizione                   ","Check nr caratteri",null,"<<<FILE 1","FILE2 >>>",null,"ARTICOLO        ","DESCRIZIONE                   ","Check nr caratteri","ARTICOLO   NORMALIZZATO     ","Check nr caratteri",null,"ARTICOLO        "]
["0178KR","ANTIPASTIERA OVALE KRISTAL    ",{"$f":"LEN(A2)","v":6},null,null,null,null,"0178KR          ","ANTIPASTIERA OVALE KRISTAL    ",{"$f":"LEN(H2)","v":16},{"$f":"TRIM(H2)","v":"0178KR"},{"$f":"LEN(K2)","v":6},null,"0178KR          "]
[11,"BACINELLA QUADRATA            ",{"$f":"LEN(A3)","v":2},null,null,null,null,"0937/32         ","BACINELLA C/BORDO 0 32        ",{"$f":"LEN(H3)","v":16},{"$f":"TRIM(H3)","v":"0937/32"},{"$f":"LEN(K3)","v":7},null,"0937/32         "]
["0937/32","BACINELLA C/BORDO 0 32        ",7,null,null,null,null,"0937/36         ","BACINELLA C/BORDO 0 36        ",16,"0937/36",7,null,"0937/36         "]
["0937/36","BACINELLA C/BORDO 0 36        ",7,null,null,null,null,"1026/35PT       ","BACINELLA EUROPA 0 35 PT      ",16,"1026/35PT",9,null,"1026/35PT       "]
[951,"BACINELLA RETTANGOLARE        ",3,null,null,null,null,"1026/40PT       ","BACINELLA EUROPA 0 40 PT      ",16,"1026/40PT",9,null,"1026/40PT       "]
["1026/35PT","BACINELLA EUROPA 0 35 PT      ",9,null,null,null,null,11,"BACINELLA QUADRATA            ",2,"11",2,null,11]
["1026/40PT","BACINELLA EUROPA 0 40 PT      ",9,null,null,null,null,951,"BACINELLA RETTANGOLARE        ",3,"951",3,null,951]
[263,"BAGNETTO BABY                 ",3,null,null,null,null,263,"BAGNETTO BABY                 ",3,"263",3,null,263]
[144,"BARATTOLO VIETRI              ",3,null,null,null,null,"0014T           ","BARATTOLO QUADRO DE LUXE LT.1 ",16,"0014T",5,null,"0014T           "]
["0014T","BARATTOLO QUADRO DE LUXE LT.1 ",5,null,null,null,null,"1024T/05        ","BARATTOLO DE LUXE TONDO LT.0,5",16,"1024T/05",8,null,"1024T/05        "]
["1024T","BARATTOLO DE LUXE TONDO LT. 1 ",5,null,null,null,null,"1024T           ","BARATTOLO DE LUXE TONDO LT. 1 ",16,"1024T",5,null,"1024T           "]
["1024T/05","BARATTOLO DE LUXE TONDO LT.0,5",8,null,null,null,null,"1090/05         ","BARATTOLO ERMETICO LT.0,5 PICC",16,"1090/05",7,null,"1090/05         "]
["1090/05","BARATTOLO ERMETICO LT.0,5 PICC",7,null,null,null,null,"1090/08         ","BARATTOLO ERMETICO LT.0,8 GR. ",16,"1090/08",7,null,"1090/08         "]
["1090/08","BARATTOLO ERMETICO LT.0,8 GR. ",7,null,null,null,null,"0257/06         ","BARATTOLO FIORELLO OVALE BASSO",16,"0257/06",7,null,"0257/06         "]
["0021K/D","BICCHIERE BIMBO KOSTIL C/DEC. ",7,null,null,null,null,"0257/11         ","BARAT.FIOREL.OVALE ALTO LT.1,1",16,"0257/11",7,null,"0257/11         "]
["0172/S","SHAKER SENZA ASTUCCIO         ",6,null,null,null,null,"0255/06         ","BARATTOLO FIOR.QUADRATO BASSO ",16,"0255/06",7,null,"0255/06         "]
["0060/C","BROCCA GRADUATA LT.1/2 C/COP. ",6,null,null,null,null,"0255/10         ","BARAT.FIOREL.QUAD.ALTO LT.1   ",16,"0255/10",7,null,"0255/10         "]
["0060/C/10","BROCCA GRADUATA LT.1 C/COPER. ",9,null,null,null,null,"0203/05         ","BARATTOLO FIORELLO LT.0,5     ",16,"0203/05",7,null,"0203/05         "]
[164,"BROCCA PRIMAVERA              ",3,null,null,null,null,"0203KR/05       ","BARATT.FIORELLO LT.0,5 KRISTAL",16,"0203KR/05",9,null,"0203KR/05       "]
[442,"MIXER LT.2,5                  ",3,null,null,null,null,"0203/B/1        ","BARATTOLO FIORELLO LT.1 BASSO ",16,"0203/B/1",8,null,"0203/B/1        "]
[456,"MIXER CON COPERCHIO E TAPPO   ",3,null,null,null,null,"0203/1          ","BARATTOLO FIORELLO LT.1       ",16,"0203/1",6,null,"0203/1          "]
[466,"INNAFFIATOIO GRADUATO LT.2    ",3,null,null,null,null,"0203KR/1        ","BARATTOLO FIORELL LT.1 KRISTAL",16,"0203KR/1",8,null,"0203KR/1        "]
[938,"BROCCA ROMA 1,5               ",3,null,null,null,null,"0203/2          ","BARATTOLO FIORELLO LT. 2      ",16,"0203/2",6,null,"0203/2          "]
["0938C","BROCCA ROMA C/COPERCHIO       ",5,null,null,null,null,"0041T           ","BARATTOLO MILANO LT.1 TRASP.  ",16,"0041T",5,null,"0041T           "]
["PB35/489","BROCCA TRIS (P.box mini)      ",8,null,null,null,null,203,"PORTASPAGHETTI FIORELLO       ",3,"203",3,null,203]
[1045,"CANTINETTA                    ",4,null,null,null,null,"0203KR          ","PORTASPAGHETTI FIORELL KRISTAL",16,"0203KR",6,null,"0203KR          "]
["0936/32","CATINO 0 32                   ",7,null,null,null,null,144,"BARATTOLO VIETRI              ",3,"144",3,null,144]
[453,"CESTINO PORTAMOLLETTE         ",3,null,null,null,null,"0158/P          ","BICCHIERE ACQUA 350 CL        ",16,"0158/P",6,null,"0158/P          "]
[510,"CESTINO RATTAN CM.21x28,5xh8,8",3,null,null,null,null,"0021K/D         ","BICCHIERE BIMBO KOSTIL C/DEC. ",16,"0021K/D",7,null,"0021K/D         "]
[75,"CESTELLO FUTURA IMPILABILE    ",2,null,null,null,null,158,"BICCHIERE DRINK 500 CL        ",3,"158",3,null,158]
[91,"CESTONE FORATO C/COPERCHIO    ",2,null,null,null,null,"0060/C          ","BROCCA GRADUATA LT.1/2 C/COP. ",16,"0060/C",6,null,"0060/C          "]
[94,"SET CESTELLO FUTURA           ",2,null,null,null,null,"0060/C/10       ","BROCCA GRADUATA LT.1 C/COPER. ",16,"0060/C/10",9,null,"0060/C/10       "]
[155,"CESTINO PORTAPANE TONDO       ",3,null,null,null,null,164,"BROCCA PRIMAVERA              ",3,"164",3,null,164]
[156,"CESTINO PORTAPANE OVALE       ",3,null,null,null,null,938,"BROCCA ROMA 1,5               ",3,"938",3,null,938]
[250,"CESTELLO MILLE USI CON MANICO ",3,null,null,null,null,"0938C           ","BROCCA ROMA C/COPERCHIO       ",16,"0938C",5,null,"0938C           "]
[261,"CESTONE JOLLY                 ",3,null,null,null,null,"PB35/489        ","BROCCA TRIS (P.box mini)      ",16,"PB35/489",8,null,"PB35/489        "]
[304,"CESTONE CON MANICI \"SANSONE\"  ",3,null,null,null,null,1045,"CANTINETTA                    ",4,"1045",4,null,1045]
[305,"FUSTINO MAXI                  ",3,null,null,null,null,477,"CASSETTIERA A 3 CASSETTI ALTI ",3,"477",3,null,477]
[991,"CESTINO GETTACARTE PICCOLO    ",3,null,null,null,null,478,"CASSETTIERA A 4 CASSETTI ALTI ",3,"478",3,null,478]
["0991G","CESTINO GETTACARTE GRANDE     ",5,null,null,null,null,"0477/B          ","CASSETTIERA A 3 CASSETTI BASSA",16,"0477/B",6,null,"0477/B          "]
[1036,"CESTELLO SOVRAPPONIBILE       ",4,null,null,null,null,"0478/B          ","CASSETTIERA A 6 CASSETTI BASSA",16,"0478/B",6,null,"0478/B          "]
[1039,"CESTO FORATO RETTANGOLARE     ",4,null,null,null,null,"0477/M          ","CASSETTIERA A 3 CASSETTI MEDIA",16,"0477/M",6,null,"0477/M          "]
[1062,"CESTO AGRICOLO                ",4]
["1064G","CESTA MILLE USI GRANDE        ",5]
["1064M","CESTA MILLE USI MINI          ",5]
["1064P","CESTA MILLE USI PICCOLA       ",5]
["PB35/482","ORDINATUTTO P.BOX MINI        ",8]
["PB70/250","CESTELLO MILLE USI MANICO PBN ",8]
["0012/14K","CIOTOLA AMERICA 0 14 KOSTIL   ",8]